bitfinex/quotes_SOLUSD_20250811
["timestamp","ask_amount","ask_price","bid_price","bid_amount"]
[1754883863146,39.04,184.54,184.51,4.8950581]
[1754883863346,0.68,184.54,184.51,4.8950581]
[1754883863548,39.04,184.54,184.51,4.8950581]
[1754883865543,0.68,184.53,184.51,0.06]
[1754883866531,0.68,184.52,184.51,0.06]
[1754883868635,6.09946672,184.52,184.51,0.06]
[1754883869540,0.68,184.52,184.51,0.06]
[1754883870439,6.09946672,184.52,184.51,0.06]
[1754883873440,0.68,184.52,184.51,0.06]
[1754883874556,39.08,184.54,184.51,0.06]
[1754883874953,6.16834784,184.56,184.51,5.6050581]
[1754883875268,6.16834784,184.56,184.52,4.8350581]
[1754883875269,38.36,184.53,184.52,4.8350581]
[1754883875640,38.36,184.53,184.51,4.8950581]
[1754883876058,38.36,184.53,184.52,4.8350581]
[1754883876270,38.36,184.53,184.51,11.02477056]
[1754883877645,0.72,184.55,184.51,10.31477056]
[1754883877844,0.72,184.55,184.51,11.02477056]
[1754883878045,38.36,184.54,184.51,11.02477056]
[1754883878975,38.36,184.54,184.51,4.8950581]
[1754883879158,39.08,184.54,184.51,0.06]
[1754883879358,0.72,184.54,184.51,4.8950581]
[1754883879562,39.08,184.54,184.51,4.8950581]
[1754883881369,39.08,184.54,184.51,10.31480466]
[1754883881872,39.08,184.54,184.51,0.06]
[1754883882181,0.72,184.53,184.51,4.8950581]
[1754883882375,39.08,184.54,184.51,10.31479542]
[1754883883672,39.08,184.54,184.51,4.8950581]
[1754883884082,38.36,184.54,184.51,11.02472905]
[1754883884581,38.36,184.54,184.52,4.8350581]
[1754883886383,39.08,184.54,184.52,4.8350581]
[1754883886558,39.08,184.54,184.51,4.8950581]
[1754883887678,0.72,184.53,184.51,4.8950581]
[1754883888363,38.36,184.54,184.51,4.8950581]
[1754883888364,0.72,184.52,184.51,0.06]
[1754883890373,6.13946672,184.52,184.51,0.06]
[1754883893183,44.47946672,184.52,184.51,0.06]
[1754883893893,49.31452482,184.52,184.51,0.06]
[1754883897699,5.41926974,184.53,184.51,0.06]
[1754883897900,38.34,184.52,184.51,0.06]
[1754883898190,39.06,184.52,184.51,0.06]
[1754883898591,44.47946672,184.52,184.51,0.06]
[1754883900192,6.13946672,184.52,184.51,0.06]
[1754883900363,44.47946672,184.52,184.51,0.06]
[1754883900783,39.06,184.52,184.51,0.06]
[1754883901189,44.47946672,184.52,184.51,0.06]
[1754883901399,15.10621557,184.51,184.39,0.69]
[1754883901596,4.8350581,184.44,184.39,4.8350581]
[1754883901902,39.04,184.5,184.31,38.34]
[1754883901903,43.8750581,184.43,184.38,0.69]
[1754883902072,4.8350581,184.42,184.37,4.8350581]
[1754883902274,0.7,184.45,184.38,0.69]
[1754883902674,38.34,184.44,184.4,4.8350581]
[1754883902874,38.34,184.44,184.4,5.5250581]
[1754883903218,0.7,184.48,184.43,4.8350581]
[1754883903372,0.7,184.5,184.47,4.8350581]
[1754883903712,38.34,184.49,184.47,0.69]
[1754883904000,5.4194256,184.53,184.48,0.69]
[1754883904205,38.34,184.52,184.48,0.69]
[1754883904366,0.7,184.51,184.46,0.69]
[1754883904573,38.34,184.52,184.47,0.69]
[1754883904803,38.34,184.52,184.51,4.8350581]
[1754883905000,69.04,184.52,184.5,4.8350581]
[1754883905272,38.34,184.52,184.48,6.1105491]
[1754883905474,38.34,184.52,184.51,4.8350581]
[1754883907805,38.34,184.53,184.51,4.8350581]
[1754883908679,38.34,184.52,184.51,4.8350581]
[1754883911590,0.03,184.54,184.51,5.5250581]
[1754883911899,38.32,184.53,184.52,4.8350581]
[1754883912487,0.03,184.54,184.52,5.5250581]
[1754883912695,38.35,184.54,184.53,4.8350581]
[1754883914382,0.03,184.54,184.53,4.8350581]
[1754883917384,0.03,184.54,184.53,5.5250581]
[1754883917615,0.03,184.54,184.53,10.94423113]
[1754883920304,0.03,184.54,184.53,26.0504467]
[1754883924118,0.03,184.56,184.55,41.10621557]
[1754883924325,0.03,184.56,184.55,45.94127367]
[1754883924618,0.03,184.56,184.55,52.04985941]
[1754883926420,0.03,184.59,184.55,66.13818235]
[1754883926636,0.03,184.59,184.58,45.94127367]
[1754883927294,0.03,184.59,184.58,46.63127367]
[1754883928332,0.03,184.59,184.58,53.63505877]
[1754883928533,0.03,184.59,184.58,48.80000067]
[1754883928697,0.03,184.59,184.58,54.21770573]
[1754883929742,0.03,184.59,184.58,59.59453433]
[1754883930037,0.03,184.6,184.59,15.10621557]
[1754883930210,0.03,184.6,184.59,58.90127367]
[1754883930828,0.03,184.6,184.59,64.31868523]
[1754883931693,0.03,184.6,184.59,63.65868523]
[1754883933041,0.03,184.6,184.59,66.48723523]
[1754883934630,1e-08,184.6,184.59,66.48723523]
[1754883935128,1e-08,184.6,184.59,65.82723523]
[1754883936036,0.69000001,184.6,184.59,22.10982367]
[1754883936233,0.69000001,184.6,184.59,60.38982367]
[1754883936442,6.1071181,184.6,184.59,55.55476557]
[1754883936626,6.1071358,184.6,184.58,19.94127367]
[1754883936829,0.69,184.59,184.56,6.107118]
[1754883937137,0.69,184.59,184.55,4.8350581]
[1754883937434,0.69,184.59,184.54,4.8350581]
[1754883938325,5.41770506,184.58,184.55,4.8350581]
[1754883938508,0.69,184.57,184.55,4.8350581]
[1754883938939,0.69,184.59,184.56,4.8350581]
[1754883940240,0.69,184.59,184.54,20.52507353]
[1754883940434,6.10750495,184.59,184.56,4.8350581]
[1754883940625,0.69,184.58,184.54,19.94127367]
[1754883941023,5.41750495,184.59,184.54,19.94127367]
[1754883941231,0.69,184.57,184.55,4.8350581]
[1754883941434,0.69,184.57,184.54,19.94127367]
[1754883941919,5.41750495,184.59,184.54,19.94127367]
[1754883942121,0.69,184.56,184.55,4.8350581]
[1754883942430,5.41750495,184.59,184.55,4.8350581]
[1754883942632,0.69,184.58,184.56,4.8350581]
[1754883942833,0.69,184.58,184.55,4.8350581]
[1754883943140,5.5250581,184.57,184.49,0.06]
[1754883943327,5.5250581,184.57,184.52,15.10621557]
[1754883943513,0.69,184.57,184.54,4.8350581]
[1754883944116,0.69,184.57,184.55,4.8350581]
[1754883944730,0.69,184.59,184.56,4.8350581]
[1754883945133,0.69,184.59,184.57,4.8350581]
[1754883945939,0.69,184.58,184.56,4.8350581]
[1754883946944,0.69,184.57,184.54,43.1150581]
[1754883947134,0.69,184.56,184.54,43.1150581]
[1754883947436,0.69,184.57,184.54,43.1150581]
[1754883947638,6.10715423,184.6,184.56,4.8350581]
[1754883947842,0.69,184.59,184.56,4.8350581]
[1754883948220,0.69,184.59,184.55,4.8350581]
[1754883948418,0.69,184.59,184.54,48.53389916]
[1754883948620,0.69,184.59,184.56,4.8350581]
[1754883950544,0.69,184.58,184.54,43.1150581]
[1754883950849,0.69,184.57,184.55,4.8350581]
[1754883951561,0.69,184.56,184.54,4.8350581]
[1754883952436,0.69,184.58,184.54,4.8350581]
[1754883952754,1e-08,184.6,184.57,4.8350581]
[1754883952923,1e-08,184.6,184.59,4.8350581]
[1754883953128,1e-08,184.6,184.58,4.8350581]
[1754883953458,0.69000001,184.6,184.56,0.66]
[1754883953665,1e-08,184.6,184.59,4.8350581]
[1754883954131,1e-08,184.6,184.59,10.25246966]
[1754883954855,1e-08,184.6,184.59,4.8350581]
[1754883956450,0.69000001,184.6,184.59,4.8350581]
[1754883956854,1e-08,184.6,184.59,4.8350581]
[1754883957552,0.69000001,184.6,184.55,53.38621557]
[1754883957740,0.69,184.59,184.56,4.8350581]
[1754883958050,1e-08,184.6,184.58,4.8350581]
[1754883958258,1e-08,184.6,184.59,4.8350581]
[1754883960754,1e-08,184.6,184.58,4.8350581]
[1754883960956,0.72000001,184.6,184.58,4.8350581]
[1754883961531,0.72000001,184.6,184.57,15.10621557]
[1754883961834,5.5550581,184.59,184.56,0.06]
[1754883962037,0.72,184.58,184.56,0.06]
[1754883962856,1e-08,184.6,184.57,4.8350581]
[1754883963263,1e-08,184.6,184.59,4.8350581]
[1754883963561,1e-08,184.6,184.56,15.16621557]
[1754883963562,1e-08,184.6,184.58,0.68]
[1754883963856,1e-08,184.6,184.59,4.8350581]
[1754883964056,1e-08,184.6,184.59,19.94127367]
[1754883964266,1e-08,184.6,184.59,22.78994167]
[1754883964864,1e-08,184.6,184.59,20.62127367]
[1754883966769,1e-08,184.6,184.59,19.94127367]
[1754883967058,1e-08,184.6,184.59,9.8350581]
[1754883967259,0.72000001,184.6,184.59,5.0]
[1754883967577,1e-08,184.6,184.59,5.0]
[1754883969259,1e-08,184.6,184.59,9.8350581]
[1754883969650,1e-08,184.6,184.59,5.0]
[1754883970560,1e-08,184.6,184.59,9.8350581]
[1754883972673,0.72000001,184.6,184.59,5.0]
[1754883973454,5.55505811,184.6,184.59,5.0]
[1754883974588,10.9721762,184.6,184.59,5.0]
[1754883977074,5.4171181,184.6,184.59,10.0]
[1754883977448,1e-08,184.6,184.59,10.0]
[1754883977649,1e-08,184.6,184.59,14.8350581]
[1754883977866,1e-08,184.6,184.59,15.5150581]
[1754883979476,1e-08,184.6,184.59,14.8350581]
[1754883980573,1e-08,184.6,184.59,15.5150581]
[1754883981186,1e-08,184.6,184.59,14.8350581]
[1754883981377,1e-08,184.6,184.59,10.0]
[1754883981883,0.72000001,184.6,184.59,10.0]
[1754883982590,1e-08,184.6,184.59,10.0]
[1754883985191,1e-08,184.6,184.59,14.8350581]
[1754883985779,1e-08,184.6,184.59,10.0]
[1754883985986,0.72000001,184.6,184.59,10.0]
[1754883987489,6.1371181,184.6,184.59,10.0]
[1754883988384,10.9721762,184.6,184.59,10.0]
[1754883989712,6.1371181,184.6,184.59,10.0]
[1754883990001,10.9721762,184.6,184.59,10.0]
[1754883990896,6.1371181,184.6,184.59,10.0]
[1754883991071,1e-08,184.6,184.59,10.0]
[1754883991275,5.4171181,184.6,184.59,10.0]
[1754883991677,1e-08,184.6,184.59,10.0]
[1754883993402,0.70000001,184.6,184.59,10.0]
[1754883993590,5.53505811,184.6,184.59,10.0]
[1754883993788,10.9521762,184.6,184.59,10.0]
[1754883995800,1e-08,184.6,184.59,10.0]
[1754883998518,5.53505811,184.6,184.59,10.0]
[1754883999617,10.9521762,184.6,184.59,10.0]
[1754884000206,40.9521762,184.6,184.59,5.0]
[1754884000379,40.9521762,184.6,184.57,0.06]
[1754884000588,4.8350581,184.58,184.57,0.06]
[1754884000883,43.0550581,184.58,184.57,0.06]
[1754884001306,38.92,184.58,184.57,0.06]
[1754884001508,43.7550581,184.58,184.57,0.06]
[1754884002018,49.17276316,184.58,184.57,0.06]
[1754884003015,75.17276316,184.58,184.57,0.06]
[1754884003221,80.00782126,184.58,184.57,0.06]
[1754884004209,105.17276316,184.58,184.57,0.06]
[1754884005586,100.33770506,184.58,184.57,0.06]
[1754884005787,105.17276316,184.58,184.57,0.06]
[1754884006796,104.47276316,184.58,184.57,0.06]
[1754884007020,105.17276316,184.58,184.57,0.06]
[1754884008510,104.47276316,184.58,184.57,0.06]
[1754884008715,74.47276316,184.58,184.57,0.06]
[1754884009419,80.00782126,184.58,184.57,1e-08]
[1754884010620,125.11403683,184.58,184.57,1e-08]
[1754884011702,105.17276316,184.58,184.57,1e-08]
[1754884012206,66.95276316,184.58,184.57,1e-08]
[1754884012410,105.17276316,184.58,184.57,1e-08]
[1754884013192,104.47276316,184.58,184.57,1e-08]
[1754884014623,75.17276316,184.58,184.57,1e-08]
[1754884014806,74.47276316,184.58,184.57,1e-08]
[1754884015698,75.17276316,184.58,184.57,1e-08]
[1754884016910,69.63770506,184.58,184.57,1e-08]
[1754884017125,74.47276316,184.58,184.57,1e-08]
[1754884019313,75.17276316,184.58,184.57,1e-08]
[1754884021013,105.17276316,184.58,184.57,1e-08]
[1754884021310,104.47276316,184.58,184.57,1e-08]
[1754884022624,5.41732913,184.6,184.57,0.69000001]
[1754884022821,38.22,184.59,184.57,0.69000001]
[1754884023028,38.22,184.59,184.58,0.69]
[1754884024241,38.25,184.59,184.58,0.69]
[1754884026643,0.03,184.59,184.58,0.69]
[1754884026838,0.03,184.59,184.58,6.10770506]
[1754884027040,0.03,184.59,184.58,10.94276316]
[1754884027741,0.03,184.59,184.58,26.04897873]
[1754884032242,0.03,184.59,184.58,20.63127367]
[1754884033320,0.03,184.59,184.58,28.21764673]
[1754884035627,0.03,184.59,184.58,23.38258863]
[1754884035826,0.03,184.59,184.58,17.96488357]
[1754884036045,0.03,184.59,184.58,22.79994167]
[1754884037965,0.03,184.59,184.58,2.168668]
[1754884038171,0.03,184.59,184.57,1e-08]
[1754884038357,0.03,184.59,184.57,4.83505811]
[1754884038557,0.03,184.59,184.58,5.5250581]
[1754884038743,0.03,184.59,184.58,4.8350581]
[1754884039327,0.03,184.59,184.58,5.5250581]
[1754884039838,0.03,184.59,184.58,10.94276316]
[1754884040234,0.03,184.59,184.58,6.10770506]
[1754884040453,0.03,184.59,184.58,10.94276316]
[1754884044463,0.03,184.59,184.58,26.04897873]
[1754884044829,0.03,184.59,184.58,28.21764673]
[1754884045768,0.03,184.59,184.58,27.52764673]
[1754884046324,0.03,184.59,184.58,28.21764673]
[1754884047746,0.03,184.59,184.58,22.79994167]
[1754884049638,0.03,184.59,184.58,22.10994167]
[1754884051452,0.03,184.59,184.58,27.52764673]
[1754884051961,0.03,184.59,184.58,28.19764673]
[1754884054748,0.03,184.59,184.58,27.52764673]
[1754884055064,0.03,184.59,184.58,28.19764673]
[1754884056066,0.03,184.59,184.58,27.52764673]
[1754884056269,0.03,184.59,184.58,28.19764673]
[1754884056866,0.03,184.59,184.58,27.52764673]
[1754884057438,0.03,184.59,184.58,28.19764673]
[1754884059065,0.03,184.59,184.58,27.52764673]
[1754884060784,0.03,184.59,184.58,28.19764673]
[1754884063975,0.03,184.59,184.58,23.36258863]
[1754884064273,0.72,184.59,184.58,60.26994167]
[1754884065965,0.72,184.59,184.58,55.43488357]
[1754884066489,0.72,184.59,184.58,2.168668]
[1754884066845,0.03,184.59,184.58,17.27488357]
[1754884067182,0.03,184.59,184.58,58.77127367]
[1754884067347,0.03,184.59,184.58,66.35764773]
[1754884067753,0.03,184.59,184.58,65.68764773]
[1754884070850,0.03,184.59,184.58,55.43488457]
[1754884071046,0.72,184.59,184.58,60.26994267]
[1754884072388,0.03,184.59,184.58,60.26994267]
[1754884074052,0.03,184.59,184.58,65.68764773]
[1754884075176,0.03,184.59,184.58,60.26994267]
[1754884075381,0.72,184.59,184.58,55.43488457]
[1754884075880,0.72,184.59,184.58,38.16]
[1754884077078,0.72,184.59,184.57,40.32902101]
[1754884077257,0.03,184.59,184.57,38.16000001]
[1754884077459,0.69,184.58,184.57,38.16000001]
[1754884077854,0.69,184.58,184.57,1e-08]
[1754884078976,0.03,184.59,184.57,4.83505811]
[1754884079278,0.72,184.59,184.57,4.83505811]
[1754884079455,0.72,184.59,184.57,10.2529738]
[1754884079851,0.03,184.59,184.58,0.67]
[1754884080079,0.03,184.59,184.58,58.77127367]
[1754884081477,0.03,184.59,184.58,64.18897873]
[1754884082485,0.03,184.59,184.58,59.35392063]
[1754884082685,0.72,184.59,184.57,89.60000001]
[1754884083178,5.5550581,184.59,184.57,89.60000001]
[1754884083495,0.69,184.58,184.57,89.60000001]
[1754884083861,0.03,184.59,184.57,89.60000001]
[1754884084468,0.03,184.59,184.57,99.85304598]
[1754884084869,0.03,184.59,184.57,95.01798788]
[1754884085166,0.03,184.59,184.58,43.6650581]
[1754884085377,0.03,184.59,184.58,42.9950581]
[1754884085687,0.03,184.59,184.58,48.41276316]
[1754884086385,0.03,184.59,184.58,64.18897873]
[1754884086882,21.34919003,184.75,184.58,64.18897873]
[1754884087062,5.41477149,184.68,184.59,15.10621557]
[1754884087261,4.8350581,184.66,184.6,4.8350581]
[1754884087687,0.03,184.61,184.6,10.25201846]
[1754884088186,0.03,184.61,184.6,10.92201846]
[1754884090067,0.03,184.61,184.6,5.41696036]
[1754884090770,0.03,184.61,184.59,63.51860959]
[1754884091501,0.03,184.61,184.6,19.94127367]
[1754884091692,0.03,184.61,184.6,20.61127367]
[1754884091993,0.03,184.61,184.6,26.02839176]
[1754884095793,0.03,184.61,184.6,21.19333366]
[1754884095996,0.03,184.61,184.6,26.02839176]
[1754884096775,0.03,184.61,184.6,115.62839176]
[1754884099697,0.03,184.61,184.6,114.95839176]
[1754884100002,0.03,184.61,184.6,115.62839176]
[1754884102591,0.03,184.61,184.6,114.95839176]
[1754884103575,0.54,184.61,184.6,110.12333366]
[1754884104503,0.54,184.61,184.6,114.95839176]
[1754884104504,0.03,184.61,184.6,114.95839176]
[1754884104796,0.54,184.61,184.6,104.70621557]
[1754884106690,0.54,184.61,184.6,89.6]
[1754884107115,0.03,184.61,184.6,89.6]
[1754884108409,0.72,184.61,184.6,89.6]
[1754884108586,0.03,184.61,184.59,64.16]
[1754884108991,0.72,184.61,184.59,64.16]
[1754884109798,0.03,184.61,184.59,64.16]
[1754884110036,0.7,184.6,184.59,38.16]
[1754884110394,0.7,184.6,184.58,53.22621557]
[1754884111094,0.03,184.61,184.58,38.12]
[1754884111293,0.7,184.59,184.57,38.12000001]
[1754884111519,0.7,184.59,184.58,26.0]
[1754884111820,0.7,184.58,184.57,1e-08]
[1754884113492,0.7,184.6,184.57,1e-08]
[1754884114509,0.03,184.61,184.57,0.71000001]
[1754884114885,0.03,184.61,184.59,4.8350581]
[1754884115216,0.03,184.61,184.58,58.06127367]
[1754884115389,0.03,184.61,184.58,63.47885948]
[1754884115592,0.03,184.61,184.58,58.64380138]
[1754884115919,0.73,184.61,184.58,58.64380138]
[1754884116123,0.7,184.6,184.58,53.22621557]
[1754884116505,0.03,184.61,184.58,53.93621557]
[1754884116821,0.03,184.61,184.58,59.35384461]
[1754884116997,0.03,184.61,184.59,0.71]
[1754884117408,0.03,184.61,184.58,63.47890271]
[1754884117606,0.03,184.61,184.58,58.64384461]
[1754884117906,0.73,184.61,184.58,53.22621557]
[1754884118504,0.7,184.6,184.58,53.22621557]
[1754884118920,0.7,184.6,184.58,15.10621557]
[1754884119529,0.03,184.61,184.58,15.10621557]
[1754884119892,0.73,184.61,184.58,15.10621557]
[1754884122225,5.5350581,184.6,184.57,1e-08]
[1754884122409,4.8350581,184.58,184.57,1e-08]
[1754884122597,4.8350581,184.6,184.57,1e-08]
[1754884122795,5.5650581,184.61,184.57,0.71000001]
[1754884123000,0.7,184.6,184.57,1e-08]
[1754884123207,5.5350581,184.6,184.57,1e-08]
[1754884124541,4.8350581,184.6,184.57,0.71000001]
[1754884124825,4.8650581,184.61,184.57,0.71000001]
[1754884125214,0.03,184.61,184.58,5.5450581]
[1754884125427,0.03,184.61,184.58,4.8350581]
[1754884125648,0.03,184.61,184.59,0.71]
[1754884125929,0.7,184.6,184.57,26.00000001]
[1754884126104,4.8650581,184.61,184.57,26.71000001]
[1754884126304,0.73,184.61,184.57,26.71000001]
[1754884127728,5.5350581,184.6,184.57,1e-08]
[1754884128399,4.8350581,184.58,184.57,1e-08]
[1754884128745,6.11746389,184.59,184.57,1e-08]
[1754884128900,5.5350581,184.58,184.57,1e-08]
[1754884129916,10.95276316,184.58,184.57,1e-08]
[1754884130250,5.5350581,184.58,184.57,1e-08]
[1754884130838,0.7,184.58,184.57,1e-08]
[1754884131128,6.11714856,184.6,184.57,1e-08]
[1754884131305,4.8350581,184.58,184.57,1e-08]
[1754884133630,0.03,184.61,184.57,0.71000001]
[1754884133928,0.03,184.61,184.58,0.71]
[1754884134628,0.03,184.61,184.57,1e-08]
[1754884134801,0.73,184.61,184.57,0.71000001]
[1754884136504,0.73,184.61,184.57,1e-08]
[1754884136711,0.03,184.61,184.58,0.71]
[1754884137833,0.03,184.61,184.57,5.38584161]
[1754884138426,0.03,184.61,184.57,10.22089971]
[1754884139919,0.03,184.61,184.58,0.67]
[1754884140634,0.03,184.61,184.58,6.08761957]
[1754884140824,0.03,184.61,184.58,5.41761957]
[1754884141034,0.03,184.61,184.57,10.92299239]
[1754884141229,0.75,184.61,184.57,10.92299239]
[1754884142543,0.75,184.61,184.58,0.67]
[1754884143041,0.75,184.61,184.56,26.08948251]
[1754884143339,0.75,184.61,184.57,0.67]
[1754884144537,0.75,184.61,184.57,6.08790845]
[1754884145419,0.75,184.61,184.58,0.67]
[1754884146311,0.03,184.61,184.56,31.50579696]
[1754884146512,0.75,184.61,184.57,0.67]
[1754884148420,0.03,184.61,184.57,6.08787867]
[1754884148630,0.03,184.61,184.58,0.67]
[1754884149147,0.03,184.61,184.59,4.8350581]
[1754884149445,0.03,184.61,184.59,10.2507721]
[1754884149657,0.03,184.61,184.6,20.61127367]
[1754884150521,0.03,184.61,184.6,26.02839176]
[1754884152541,0.03,184.61,184.6,25.35839176]
[1754884152932,0.03,184.61,184.6,26.02839176]
[1754884159356,0.03,184.61,184.6,31.47349976]
[1754884159650,0.03,184.61,184.6,69.57349976]
[1754884160450,0.03,184.61,184.6,68.90349976]
[1754884160956,0.03,184.61,184.6,69.57349976]
[1754884162570,0.03,184.61,184.6,68.90349976]
[1754884163638,0.75,184.61,184.6,48.3801661]
[1754884163953,0.75,184.61,184.59,89.6]
[1754884164653,0.72,184.6,184.59,89.6]
[1754884164952,0.03,184.61,184.58,15.08781419]
[1754884165254,0.75,184.61,184.58,15.75781419]
[1754884165554,0.75,184.61,184.58,15.08781419]
[1754884166835,0.72,184.6,184.58,9.6701161]
[1754884167453,0.03,184.61,184.58,15.08773281]
[1754884167757,0.75,184.61,184.58,15.08773281]
[1754884167956,0.72,184.6,184.58,15.08773281]
[1754884168135,0.72,184.6,184.58,10.25267471]
[1754884168456,0.72,184.6,184.58,4.835058]
[1754884169444,0.03,184.61,184.58,15.0877923]
[1754884169650,0.03,184.61,184.58,15.7677923]
[1754884170441,0.03,184.61,184.58,10.9327343]
[1754884170648,0.03,184.61,184.59,4.835058]
[1754884170947,0.03,184.61,184.6,5.41711809]
[1754884171566,0.03,184.61,184.59,10.25239322]
[1754884171864,0.7,184.61,184.59,4.8350581]
[1754884172539,0.7,184.61,184.58,15.087747]
[1754884173056,0.7,184.61,184.58,15.767747]
[1754884173264,0.03,184.61,184.58,15.767747]
[1754884173836,0.03,184.61,184.6,4.8350581]
[1754884174042,0.03,184.61,184.6,19.94127367]
[1754884174672,0.03,184.61,184.6,22.10970667]
[1754884175242,0.03,184.61,184.6,17.27464857]
[1754884176965,0.7,184.61,184.6,2.168433]
[1754884177166,0.7,184.61,184.59,43.51735673]
[1754884177345,0.03,184.61,184.59,48.35241483]
[1754884177669,0.03,184.61,184.59,58.60352583]
[1754884178042,0.03,184.61,184.59,59.28352583]
[1754884178574,0.03,184.61,184.59,21.18352583]
[1754884179074,0.03,184.61,184.6,19.94127367]
[1754884179257,0.03,184.61,184.6,20.62127367]
[1754884179851,0.03,184.61,184.6,19.94127367]
[1754884180462,0.03,184.61,184.6,15.10621557]
[1754884181147,0.03,184.61,184.6,51.38839266]
[1754884182356,0.03,184.61,184.6,55.16833138]
[1754884182556,0.03,184.61,184.6,93.24833138]
[1754884183483,0.03,184.61,184.6,90.14839266]
[1754884183651,0.03,184.61,184.6,93.24833138]
[1754884185455,0.03,184.61,184.6,92.56833138]
[1754884186048,0.03,184.61,184.6,89.46839266]
[1754884186249,0.03,184.61,184.6,87.15121329]
[1754884186447,0.03,184.61,184.6,84.05127457]
[1754884186777,0.7,184.61,184.6,45.97127457]
[1754884187476,0.03,184.61,184.6,45.97127457]
[1754884187776,0.7,184.61,184.6,4.865059]
[1754884188076,0.03,184.61,184.6,26.0]
[1754884188579,0.03,184.61,184.6,44.20615429]
[1754884189260,0.03,184.61,184.6,44.88615429]
[1754884189575,0.03,184.61,184.6,44.20615429]
[1754884189779,0.03,184.61,184.6,41.10621557]
[1754884190155,0.03,184.61,184.6,46.62891795]
[1754884192600,0.03,184.61,184.6,45.94891795]
[1754884195666,0.03,184.61,184.6,41.10621557]
[1754884197758,0.7,184.61,184.6,41.10621557]
[1754884197965,0.03,184.61,184.6,41.10621557]
[1754884199162,0.03,184.61,184.6,46.52333366]
[1754884199359,0.03,184.61,184.6,51.36603604]
[1754884200286,0.03,184.61,184.6,52.06603604]
[1754884205194,0.03,184.61,184.6,54.23423404]
[1754884206295,0.03,184.61,184.6,143.83423404]
[1754884206903,0.03,184.61,184.6,132.87441357]
[1754884207074,0.03,184.61,184.6,137.71711595]
[1754884207972,0.03,184.61,184.6,143.13423404]
[1754884208393,0.03,184.61,184.6,143.83423404]
[1754884209098,0.03,184.65,184.64,26.0]
[1754884209296,0.03,184.68,184.67,41.10621557]
[1754884209606,0.03,184.68,184.67,84.55042442]
[1754884209809,0.03,184.68,184.67,86.71768342]
[1754884210118,0.03,184.68,184.67,87.41768342]
[1754884210287,0.03,184.68,184.67,92.83274813]
[1754884211009,0.03,184.68,184.67,86.17617695]
[1754884212189,0.71,184.7,184.68,31.36621557]
[1754884212190,0.03,184.7,184.68,31.36621557]
[1754884212402,0.03,184.73,184.71,31.36621557]
[1754884212579,0.1,184.8,184.73,15.10621557]
[1754884212783,0.1,184.8,184.77,41.10621557]
[1754884212979,0.1,184.8,184.77,84.00891795]
[1754884213199,0.1,184.8,184.77,84.70891795]
[1754884214503,0.1,184.8,184.77,86.17523695]
[1754884214504,0.78,184.8,184.77,86.17523695]
[1754884214695,0.78,184.8,184.77,60.17523695]
[1754884216013,0.78,184.8,184.77,65.58737095]
[1754884216593,0.78,184.8,184.77,60.17523695]
[1754884218891,0.1,184.8,184.77,91.58737095]
[1754884219092,0.1,184.8,184.77,92.28737095]
[1754884219596,0.1,184.8,184.77,91.58737095]
[1754884224697,0.1,184.8,184.77,92.28737095]
[1754884225098,2.166319,184.94,184.81,16.26]
[1754884225318,6.00630926,185.06,184.94,15.10621557]
[1754884225508,6.00630926,185.06,184.93,4.84270238]
[1754884225509,5.40365286,185.06,184.96,15.10621557]
[1754884225687,5.40365286,185.06,184.93,26.0]